[Event "ETCC Women 2013"]
[Site "Warsaw"]
[Date "2013.11.15"]
[Round "7"]
[White "Corke, Anya S"]
[Black "Ozturk, Kubra"]
[Result "1/2-1/2"]
[ECO "A45"]
[WhiteElo "2276"]
[BlackElo "2281"]
[PlyCount "101"]
[EventDate "2013.??.??"]
[EventCountry "POL"]
[WhiteTeam "England"]
[BlackTeam "Turkey"]
[WhiteTeamCountry "ENG"]
[BlackTeamCountry "TUR"]
[TimeControl "40/5400+30:1800+30"]

1. d4 {[%emt 0:00:00]} Nf6 {[%emt 0:00:00]} 2. Bg5 {[%emt 0:00:00]} c5 {[%emt
0:00:03]} 3. Bxf6 {[%emt 0:00:06]} gxf6 {[%emt 0:00:09]} 4. d5 {[%emt 0:00:05]}
Qb6 {[%emt 0:00:24]} 5. Qc1 {[%emt 0:00:08]} f5 {[%emt 0:00:11]} 6. c4 {[%emt
0:00:12]} Bg7 {[%emt 0:00:34]} 7. Nc3 {[%emt 0:00:07]} d6 {[%emt 0:00:21]} 8.
e3 {[%emt 0:00:10]} Nd7 {[%emt 0:00:56]} 9. Nf3 {[%emt 0:02:00]} Nf6 {[%emt 0:
00:34]} 10. Nd2 {[%emt 0:02:49]} Ne4 {[%emt 0:03:12]} 11. Ndxe4 {[%emt 0:08:29]
} fxe4 {[%emt 0:00:07]} 12. Be2 {[%emt 0:00:59]} h5 {[%emt 0:03:43]} 13. Qd2 {
[%emt 0:03:00]} Bf5 {[%emt 0:07:17]} 14. h4 {[%emt 0:08:39]} e6 {[%emt 0:09:21]
} 15. Rb1 {[%emt 0:02:35]} Ke7 {[%emt 0:06:39]} 16. g3 {[%emt 0:13:49]} Be5 {
[%emt 0:03:20]} 17. Bf1 {[%emt 0:11:07]} Rab8 {[%emt 0:09:42]} 18. Bh3 {[%emt
0:08:30]} Bxh3 {[%emt 0:04:18]} 19. Rxh3 {[%emt 0:00:07]} Qb4 {[%emt 0:00:40]}
20. dxe6 {[%emt 0:03:30]} Bxc3 {[%emt 0:06:39]} 21. Qxc3 {[%emt 0:00:07]} Qxc3+
{[%emt 0:00:17]} 22. bxc3 {[%emt 0:00:02]} Kxe6 {[%emt 0:02:10]} 23. Ke2 {
[%emt 0:05:31]} Rhd8 {[%emt 0:02:53]} 24. Rhh1 {[%emt 0:00:27]} d5 {[%emt 0:05:
22]} 25. Rhd1 {[%emt 0:07:54]} b6 {[%emt 0:01:26]} 26. cxd5+ {[%emt 0:01:02]}
Rxd5 {[%emt 0:00:11]} 27. c4 {[%emt 0:00:08]} Rxd1 {[%emt 0:02:19]} 28. Rxd1 {
[%emt 0:00:11]} b5 {[%emt 0:00:48]} 29. Rb1 {[%emt 0:10:31]} a6 {[%emt 0:02:57]
} 30. Rb3 {[%emt 0:01:08]} b4 {[%emt 0:03:08]} 31. Rb2 {[%emt 0:01:36]} Rd8 {
[%emt 0:00:56]} 32. f3 {[%emt 0:03:44]} f5 {[%emt 0:03:21]} 33. fxe4 {[%emt 0:
02:51]} fxe4 {[%emt 0:00:02]} 34. Rb1 {[%emt 0:00:17]} Rd3 {[%emt 0:03:00]} 35.
g4 {[%emt 0:04:01]} Ra3 {[%emt 0:07:03]} 36. Kf2 {[%emt 0:00:39]} hxg4 {[%emt
0:00:46]} 37. Kg3 {[%emt 0:00:36]} Rxe3+ {[%emt 0:03:14]} 38. Kxg4 {[%emt 0:00:
05]} Re2 {[%emt 0:00:12]} 39. h5 {[%emt 0:00:59]} Rg2+ {[%emt 0:00:35]} 40. Kf4
{[%emt 0:00:00]} Rh2 {[%emt 0:00:00]} 41. Rg1 {[%emt 0:01:37]} Kf7 {[%emt 0:12:
24]} 42. Rg5 {[%emt 0:05:11]} Rxa2 {[%emt 0:02:37]} 43. Rxc5 {[%emt 0:00:30]}
a5 {[%emt 0:02:05]} 44. Rb5 {[%emt 0:05:01]} Rc2 {[%emt 0:01:53]} 45. Rxa5 {
[%emt 0:05:21]} Rxc4 {[%emt 0:00:04]} 46. Re5 {[%emt 0:01:00]} Kg7 {[%emt 0:01:
36]} 47. Rxe4 {[%emt 0:00:20]} Rxe4+ {[%emt 0:00:04]} 48. Kxe4 {[%emt 0:00:02]}
Kh6 {[%emt 0:00:04]} 49. Kd4 {[%emt 0:00:05]} Kxh5 {[%emt 0:00:04]} 50. Kc4 {
[%emt 0:00:04]} b3 {[%emt 0:00:03]} 51. Kxb3 1/2-1/2

[Event "ETCC Women 2013"]
[Site "Warsaw"]
[Date "2013.11.15"]
[Round "7"]
[White "Danielian, Elina"]
[Black "Iwanow, Anna"]
[Result "1-0"]
[ECO "E62"]
[WhiteElo "2457"]
[BlackElo "2206"]
[PlyCount "99"]
[EventDate "2013.??.??"]
[EventCountry "POL"]
[WhiteTeam "Armenia"]
[BlackTeam "Poland"]
[WhiteTeamCountry "ARM"]
[BlackTeamCountry "POL"]
[TimeControl "40/5400+30:1800+30"]

1. d4 {[%emt 0:00:00]} Nf6 {[%emt 0:00:00]} 2. Nf3 {[%emt 0:00:11]} g6 {[%emt
0:00:00]} 3. c4 {[%emt 0:00:13]} Bg7 {[%emt 0:00:00]} 4. g3 {[%emt 0:00:09]}
O-O {[%emt 0:00:11]} 5. Bg2 {[%emt 0:00:03]} d6 {[%emt 0:00:19]} 6. O-O {[%emt
0:00:07]} c6 {[%emt 0:00:09]} 7. Nc3 {[%emt 0:00:18]} Qa5 {[%emt 0:00:13]} 8.
e4 {[%emt 0:03:07]} Qh5 {[%emt 0:00:25]} 9. Ng5 {[%emt 0:05:41]} Qxd1 {[%emt 0:
00:25]} 10. Rxd1 {[%emt 0:00:03]} e5 {[%emt 0:00:17]} 11. dxe5 {[%emt 0:06:04]}
dxe5 {[%emt 0:00:10]} 12. Be3 {[%emt 0:00:28]} Na6 {[%emt 0:00:18]} 13. h3 {
[%emt 0:01:01]} h6 {[%emt 0:03:02]} 14. Nf3 {[%emt 0:00:08]} Re8 {[%emt 0:06:
07]} 15. a3 {[%emt 0:02:20]} Nd7 {[%emt 0:01:58]} 16. b4 {[%emt 0:03:18]} Nf8 {
[%emt 0:01:47]} 17. b5 {[%emt 0:08:27]} Nc7 {[%emt 0:05:57]} 18. a4 {[%emt 0:
02:54]} Nfe6 {[%emt 0:04:33]} 19. a5 {[%emt 0:02:14]} Rd8 {[%emt 0:33:37]} 20.
Rxd8+ {[%emt 0:06:09]} Nxd8 {[%emt 0:02:52]} 21. Rd1 {[%emt 0:00:05]} Nde6 {
[%emt 0:01:13]} 22. Bf1 {[%emt 0:01:49]} Kf8 {[%emt 0:04:18]} 23. Na4 {[%emt 0:
06:02]} Ke8 {[%emt 0:10:18]} 24. Nc5 {[%emt 0:00:54]} f5 {[%emt 0:04:04]} 25.
exf5 {[%emt 0:07:56]} gxf5 {[%emt 0:00:10]} 26. Nh4 {[%emt 0:04:34]} f4 {[%emt
0:01:38]} 27. gxf4 {[%emt 0:07:18]} exf4 {[%emt 0:00:33]} 28. Nxe6 {[%emt 0:00:
04]} Nxe6 {[%emt 0:00:08]} 29. Bc1 {[%emt 0:00:04]} Bd7 {[%emt 0:05:58]} 30.
Nf5 {[%emt 0:09:57]} Bc3 {[%emt 0:01:20]} 31. Ba3 {[%emt 0:07:00]} c5 {[%emt 0:
02:41]} 32. Bg2 {[%emt 0:01:21]} Bxa5 {[%emt 0:01:51]} 33. Nd6+ {[%emt 0:04:11]
} Ke7 {[%emt 0:00:07]} 34. Nxb7 {[%emt 0:00:53]} Rg8 {[%emt 0:00:33]} 35. Nxc5
{[%emt 0:00:56]} Nxc5 {[%emt 0:02:06]} 36. Bxc5+ {[%emt 0:00:05]} Ke8 {[%emt 0:
00:51]} 37. Kh2 {[%emt 0:00:55]} Rg5 {[%emt 0:03:41]} 38. Bd6 {[%emt 0:00:07]}
Rf5 {[%emt 0:02:49]} 39. Bf3 {[%emt 0:02:24]} h5 {[%emt 0:01:06]} 40. Rg1 {
[%emt 0:00:00]} Bb6 {[%emt 0:00:00]} 41. Rg8+ {[%emt 0:06:00]} Kf7 {[%emt 0:02:
13]} 42. Rf8+ {[%emt 0:00:08]} Ke6 {[%emt 0:02:34]} 43. Rxf5 {[%emt 0:00:05]}
Kxf5 {[%emt 0:00:06]} 44. c5 {[%emt 0:01:48]} Bxb5 {[%emt 0:02:08]} 45. cxb6 {
[%emt 0:00:06]} axb6 {[%emt 0:00:04]} 46. Bxh5 {[%emt 0:00:02]} Bc6 {[%emt 0:
00:22]} 47. Bg4+ {[%emt 0:00:10]} Kg5 {[%emt 0:00:35]} 48. f3 {[%emt 0:00:10]}
b5 {[%emt 0:00:17]} 49. h4+ {[%emt 0:00:48]} Kxh4 {[%emt 0:00:19]} 50. Be7# {
[%emt 0:00:03]} 1-0

[Event "ETCC Women 2013"]
[Site "Warsaw"]
[Date "2013.11.15"]
[Round "7"]
[White "Daulyte, Deimante"]
[Black "Vega Gutierrez, Sabrina"]
[Result "1-0"]
[ECO "B33"]
[WhiteElo "2336"]
[BlackElo "2385"]
[PlyCount "67"]
[EventDate "2013.??.??"]
[EventCountry "POL"]
[WhiteTeam "Lithuania"]
[BlackTeam "Spain"]
[WhiteTeamCountry "LTU"]
[BlackTeamCountry "ESP"]
[TimeControl "40/5400+30:1800+30"]

1. e4 c5 2. Nf3 Nc6 3. d4 cxd4 4. Nxd4 Nf6 5. Nc3 e5 6. Ndb5 d6 7. Bg5 a6 8.
Na3 b5 9. Nd5 Be7 10. Bxf6 Bxf6 11. c3 Ne7 12. Nxf6+ gxf6 13. Bd3 d5 14. Qe2
Bb7 15. O-O-O Qb6 16. exd5 Nxd5 17. Bf5 Nf4 18. Qg4 Bxg2 19. Qg7 Rf8 20. Rhe1
Bh3 21. Bxh3 Nxh3 22. Qg2 Nxf2 23. Qxa8+ Ke7 24. Qf3 Nxd1 25. Rxd1 Rg8 26. Nc2
Rg1 27. Ne3 Rxd1+ 28. Kxd1 Qd8+ 29. Kc2 Kf8 30. Nf5 Qc8 31. Qd3 Qa8 32. Qd6+
Kg8 33. Ne7+ Kg7 34. Nd5 1-0

[Event "ETCC Women 2013"]
[Site "Warsaw"]
[Date "2013.11.15"]
[Round "7"]
[White "Dierckens, Sarah"]
[Black "Cosma, Elena-Luminita"]
[Result "1/2-1/2"]
[ECO "C10"]
[WhiteElo "1872"]
[BlackElo "2326"]
[PlyCount "130"]
[EventDate "2013.??.??"]
[EventCountry "POL"]
[WhiteTeam "Belgium"]
[BlackTeam "Romania"]
[WhiteTeamCountry "BEL"]
[BlackTeamCountry "ROU"]
[TimeControl "40/5400+30:1800+30"]

1. e4 {[%emt 0:00:00]} e6 {[%emt 0:00:00]} 2. d4 {[%emt 0:00:00]} d5 {[%emt 0:
00:00]} 3. Nc3 {[%emt 0:00:00]} h6 {[%emt 0:00:00]} 4. e5 {[%emt 0:01:11]} c5 {
[%emt 0:00:20]} 5. f4 {[%emt 0:02:11]} cxd4 {[%emt 0:01:36]} 6. Qxd4 {[%emt 0:
00:50]} Ne7 {[%emt 0:01:47]} 7. Nb5 {[%emt 0:07:27]} Nec6 {[%emt 0:03:45]} 8.
Qf2 {[%emt 0:01:02]} a6 {[%emt 0:00:48]} 9. Nc3 {[%emt 0:03:57]} Nd7 {[%emt 0:
07:36]} 10. Be3 {[%emt 0:02:20]} b5 {[%emt 0:04:10]} 11. O-O-O {[%emt 0:03:05]}
Bb7 {[%emt 0:13:11]} 12. Nf3 {[%emt 0:01:14]} b4 {[%emt 0:07:32]} 13. Ne2 {
[%emt 0:05:30]} Rc8 {[%emt 0:03:54]} 14. Ned4 {[%emt 0:02:09]} Nxd4 {[%emt 0:
11:35]} 15. Nxd4 {[%emt 0:01:20]} Nc5 {[%emt 0:02:51]} 16. f5 {[%emt 0:04:49]}
exf5 {[%emt 0:14:56]} 17. Nxf5 {[%emt 0:00:29]} Ne4 {[%emt 0:01:59]} 18. Qf4 {
[%emt 0:12:05]} g6 {[%emt 0:02:41]} 19. Nd4 {[%emt 0:10:30]} Bg7 {[%emt 0:00:
42]} 20. e6 {[%emt 0:03:59]} O-O {[%emt 0:04:19]} 21. exf7+ {[%emt 0:03:28]}
Rxf7 {[%emt 0:00:06]} 22. Qg4 {[%emt 0:03:31]} Qd6 {[%emt 0:00:46]} 23. Ne6 {
[%emt 0:05:02]} Nf6 {[%emt 0:13:59]} 24. Qh3 {[%emt 0:03:35]} Qd7 {[%emt 0:00:
43]} 25. Nxg7 {[%emt 0:06:47]} Qxh3 {[%emt 0:00:05]} 26. gxh3 {[%emt 0:00:02]}
Kxg7 {[%emt 0:00:06]} 27. Rg1 Ne4 28. Bd3 {[%emt 0:03:07]} Kh7 {[%emt 0:01:10]}
29. Rdf1 {[%emt 0:02:06]} Rcf8 {[%emt 0:00:17]} 30. Rxf7+ {[%emt 0:03:55]} Rxf7
{[%emt 0:00:06]} 31. Rf1 {[%emt 0:00:05]} Rxf1+ {[%emt 0:00:45]} 32. Bxf1 {
[%emt 0:00:01]} g5 {[%emt 0:00:10]} 33. Bd3 {[%emt 0:02:32]} Kg6 {[%emt 0:00:
18]} 34. Bc5 {[%emt 0:02:37]} a5 {[%emt 0:01:02]} 35. Bb6 {[%emt 0:00:06]} a4 {
[%emt 0:00:07]} 36. Bc5 {[%emt 0:01:19]} b3 {[%emt 0:00:23]} 37. axb3 {[%emt 0:
00:32]} axb3 {[%emt 0:00:06]} 38. cxb3 {[%emt 0:00:05]} Bc8 {[%emt 0:00:42]}
39. b4 {[%emt 0:03:33]} Bxh3 {[%emt 0:00:19]} 40. b5 {[%emt 0:00:39]} Bc8 {
[%emt 0:01:13]} 41. Bxe4+ {[%emt 0:02:57]} dxe4 {[%emt 0:00:05]} 42. Kd2 {
[%emt 0:02:05]} Kf5 {[%emt 0:00:08]} 43. Ke3 {[%emt 0:01:07]} Bb7 {[%emt 0:00:
42]} 44. Kf2 {[%emt 0:04:15]} h5 {[%emt 0:06:04]} 45. Be3 {[%emt 0:03:09]} h4 {
[%emt 0:02:24]} 46. b6 {[%emt 0:05:59]} g4 {[%emt 0:00:26]} 47. b3 {[%emt 0:01:
10]} Bc6 {[%emt 0:03:12]} 48. Bd2 {[%emt 0:03:57]} Bb7 {[%emt 0:01:23]} 49. Be3
{[%emt 0:00:05]} Bc8 {[%emt 0:00:09]} 50. Kg2 {[%emt 0:01:42]} Ke5 {[%emt 0:05:
48]} 51. Kf2 {[%emt 0:01:52]} Kf6 {[%emt 0:06:51]} 52. Kg2 {[%emt 0:00:43]} Kf5
{[%emt 0:00:12]} 53. Kf2 {[%emt 0:00:21]} Bb7 {[%emt 0:00:08]} 54. Bd2 {[%emt
0:01:20]} g3+ {[%emt 0:05:16]} 55. hxg3 {[%emt 0:00:25]} h3 {[%emt 0:00:06]}
56. Kg1 {[%emt 0:00:09]} Kg4 {[%emt 0:00:06]} 57. Kh2 {[%emt 0:00:06]} Bc8 {
[%emt 0:00:58]} 58. b4 {[%emt 0:00:18]} Ba6 {[%emt 0:00:38]} 59. b5 {[%emt 0:
00:47]} Bc8 {[%emt 0:00:06]} 60. Bf4 {[%emt 0:00:23]} Bb7 {[%emt 0:00:32]} 61.
Bd2 {[%emt 0:00:45]} Bd5 {[%emt 0:00:27]} 62. Bf4 {[%emt 0:00:20]} Ba8 {[%emt
0:00:26]} 63. Bd2 {[%emt 0:00:26]} Bb7 {[%emt 0:00:08]} 64. Bf4 {[%emt 0:00:19]
} Bc8 {[%emt 0:00:05]} 65. Bd2 {[%emt 0:00:21]} Bb7 {[%emt 0:01:38]} 1/2-1/2

[Event "ETCC Women 2013"]
[Site "Warsaw"]
[Date "2013.11.15"]
[Round "7"]
[White "Dzagnidze, Nana"]
[Black "Socko, Monika"]
[Result "1/2-1/2"]
[ECO "D38"]
[WhiteElo "2556"]
[BlackElo "2431"]
[PlyCount "117"]
[EventDate "2013.??.??"]
[EventCountry "POL"]
[WhiteTeam "Georgia"]
[BlackTeam "Poland"]
[WhiteTeamCountry "GEO"]
[BlackTeamCountry "POL"]
[TimeControl "40/5400+30:1800+30"]

1. d4 {[%emt 0:00:00]} Nf6 {[%emt 0:00:00]} 2. c4 {[%emt 0:00:00]} e6 {[%emt 0:
00:00]} 3. Nf3 {[%emt 0:00:00]} d5 {[%emt 0:00:00]} 4. Nc3 {[%emt 0:02:39]} Bb4
{[%emt 0:00:02]} 5. cxd5 {[%emt 0:00:25]} exd5 {[%emt 0:00:08]} 6. Qa4+ {[%emt
0:04:21]} Nc6 {[%emt 0:00:43]} 7. Bg5 {[%emt 0:00:12]} h6 {[%emt 0:08:00]} 8.
Bxf6 {[%emt 0:00:22]} Bxc3+ {[%emt 0:08:20]} 9. bxc3 {[%emt 0:00:12]} Qxf6 {
[%emt 0:00:02]} 10. e3 {[%emt 0:05:11]} O-O {[%emt 0:01:11]} 11. Be2 {[%emt 0:
08:22]} Qg6 {[%emt 0:07:36]} 12. O-O {[%emt 0:03:00]} Bh3 {[%emt 0:09:58]} 13.
Ne1 {[%emt 0:00:26]} Rad8 {[%emt 0:02:38]} 14. Qb5 {[%emt 0:16:13]} Bc8 {[%emt
0:05:11]} 15. c4 {[%emt 0:00:49]} a6 {[%emt 0:03:36]} 16. Qb1 {[%emt 0:01:04]}
Qxb1 {[%emt 0:02:42]} 17. Rxb1 {[%emt 0:00:07]} dxc4 {[%emt 0:00:30]} 18. Bxc4
{[%emt 0:00:22]} Na5 {[%emt 0:00:37]} 19. Bb3 {[%emt 0:12:50]} Nxb3 {[%emt 0:
11:23]} 20. axb3 {[%emt 0:00:05]} Be6 {[%emt 0:04:32]} 21. Nf3 {[%emt 0:06:06]}
a5 {[%emt 0:01:28]} 22. Rfc1 {[%emt 0:04:47]} c6 {[%emt 0:02:23]} 23. Rc5 {
[%emt 0:11:15]} Rd5 {[%emt 0:01:07]} 24. Kf1 {[%emt 0:01:15]} Rfd8 {[%emt 0:04:
49]} 25. b4 {[%emt 0:05:33]} a4 {[%emt 0:06:58]} 26. Ra1 {[%emt 0:00:05]} Ra8 {
[%emt 0:00:37]} 27. Ra3 {[%emt 0:00:06]} b6 {[%emt 0:02:47]} 28. Rxd5 {[%emt 0:
01:12]} cxd5 {[%emt 0:01:13]} 29. Ne5 {[%emt 0:05:27]} f6 {[%emt 0:00:54]} 30.
Nd3 {[%emt 0:00:17]} Bd7 {[%emt 0:00:41]} 31. Ke1 {[%emt 0:00:36]} g5 {[%emt 0:
02:24]} 32. Kd2 {[%emt 0:07:19]} Bb5 {[%emt 0:04:28]} 33. Nb2 {[%emt 0:00:02]}
Kf7 {[%emt 0:00:50]} 34. Kc3 {[%emt 0:05:39]} Ke6 {[%emt 0:03:28]} 35. Kd2 {
[%emt 0:00:01]} Kd6 {[%emt 0:00:49]} 36. Kc3 {[%emt 0:00:54]} h5 {[%emt 0:02:
21]} 37. Kd2 {[%emt 0:00:05]} h4 {[%emt 0:01:18]} 38. Kc3 {[%emt 0:00:32]} Ke6
{[%emt 0:01:52]} 39. Kd2 {[%emt 0:00:03]} Kf5 {[%emt 0:00:53]} 40. Ke1 {[%emt
0:00:00]} h3 {[%emt 0:00:00]} 41. gxh3 {[%emt 0:02:45]} Ke6 {[%emt 0:03:35]}
42. Kd2 {[%emt 0:02:48]} Ra7 {[%emt 0:07:00]} 43. Kc3 {[%emt 0:03:10]} Kf5 {
[%emt 0:03:27]} 44. Kd2 {[%emt 0:02:30]} Kg6 {[%emt 0:00:38]} 45. f3 {[%emt 0:
17:58]} Rh7 {[%emt 0:02:59]} 46. Ke1 {[%emt 0:00:06]} Rxh3 {[%emt 0:05:49]} 47.
Nxa4 {[%emt 0:00:06]} Bxa4 {[%emt 0:00:08]} 48. Rxa4 {[%emt 0:00:01]} Rxf3 {
[%emt 0:00:05]} 49. Ke2 {[%emt 0:00:05]} Rh3 {[%emt 0:00:02]} 50. Ra6 {[%emt 0:
00:06]} Rxh2+ {[%emt 0:00:04]} 51. Kd3 {[%emt 0:00:04]} Rb2 {[%emt 0:03:15]}
52. Rxb6 {[%emt 0:01:17]} Rb3+ {[%emt 0:00:33]} 53. Ke2 {[%emt 0:01:03]} g4 {
[%emt 0:00:57]} 54. Kf2 {[%emt 0:02:59]} Kf5 {[%emt 0:03:14]} 55. Rd6 {[%emt 0:
00:45]} Rxb4 {[%emt 0:01:39]} 56. Rxd5+ {[%emt 0:00:08]} Ke4 {[%emt 0:00:10]}
57. Rd6 {[%emt 0:00:07]} Rb2+ {[%emt 0:00:47]} 58. Kg3 {[%emt 0:00:05]} Kxe3 {
[%emt 0:00:40]} 59. Rxf6 {[%emt 0:00:15]} 1/2-1/2

[Event "ETCC Women 2013"]
[Site "Warsaw"]
[Date "2013.11.15"]
[Round "7"]
[White "Efroimski, Marsel"]
[Black "Havlikova, Kristyna"]
[Result "0-1"]
[ECO "B35"]
[WhiteElo "2313"]
[BlackElo "2237"]
[PlyCount "68"]
[EventDate "2013.??.??"]
[EventCountry "POL"]
[WhiteTeam "Israel"]
[BlackTeam "Czech Republic"]
[WhiteTeamCountry "ISR"]
[BlackTeamCountry "CZE"]
[TimeControl "40/5400+30:1800+30"]

1. e4 {[%emt 0:00:00]} c5 {[%emt 0:00:00]} 2. Nf3 {[%emt 0:00:00]} Nc6 {[%emt
0:00:00]} 3. d4 {[%emt 0:00:00]} cxd4 {[%emt 0:00:00]} 4. Nxd4 {[%emt 0:00:00]}
g6 {[%emt 0:00:00]} 5. Nc3 {[%emt 0:00:10]} Bg7 {[%emt 0:00:02]} 6. Be3 {[%emt
0:00:19]} Nf6 {[%emt 0:00:08]} 7. Bc4 {[%emt 0:00:39]} O-O {[%emt 0:00:10]} 8.
Bb3 {[%emt 0:01:40]} d6 {[%emt 0:00:08]} 9. h3 {[%emt 0:00:20]} Bd7 {[%emt 0:
04:55]} 10. O-O {[%emt 0:00:08]} a6 {[%emt 0:12:04]} 11. Re1 {[%emt 0:01:30]}
Rc8 {[%emt 0:02:19]} 12. Nxc6 {[%emt 0:24:24]} Bxc6 {[%emt 0:01:14]} 13. Nd5 {
[%emt 0:01:13]} Bxd5 {[%emt 0:16:47]} 14. exd5 {[%emt 0:00:24]} Nd7 {[%emt 0:
00:04]} 15. Bd4 {[%emt 0:01:22]} Re8 {[%emt 0:03:58]} 16. Bxg7 {[%emt 0:02:52]}
Kxg7 {[%emt 0:00:46]} 17. Qd4+ {[%emt 0:00:53]} Kg8 {[%emt 0:00:07]} 18. Re3 {
[%emt 0:12:35]} Nc5 {[%emt 0:12:34]} 19. c3 {[%emt 0:12:09]} b5 {[%emt 0:11:37]
} 20. Rae1 {[%emt 0:17:59]} Nxb3 {[%emt 0:04:10]} 21. axb3 {[%emt 0:00:02]} Qc7
{[%emt 0:00:14]} 22. Qh4 {[%emt 0:02:03]} Qc5 {[%emt 0:02:13]} 23. Rxe7 {[%emt
0:04:52]} Rxe7 {[%emt 0:00:06]} 24. Qxe7 {[%emt 0:00:47]} Qxd5 {[%emt 0:00:09]}
25. b4 {[%emt 0:00:26]} Rc4 {[%emt 0:08:41]} 26. Qd8+ {[%emt 0:10:10]} Kg7 {
[%emt 0:00:07]} 27. Re8 {[%emt 0:00:24]} Re4 {[%emt 0:01:23]} 28. Rg8+ {[%emt
0:01:32]} Kh6 {[%emt 0:00:09]} 29. Qf8+ {[%emt 0:01:48]} Kg5 {[%emt 0:01:20]}
30. Rg7 {[%emt 0:01:56]} Re1+ {[%emt 0:13:55]} 31. Kh2 {[%emt 0:00:01]} Qe5+ {
[%emt 0:01:11]} 32. g3 {[%emt 0:00:08]} Qd5 {[%emt 0:00:23]} 33. h4+ {[%emt 0:
01:20]} Kg4 {[%emt 0:00:45]} 34. Qc8+ {[%emt 0:00:29]} f5 {[%emt 0:00:40]} 0-1

[Event "ETCC Women 2013"]
[Site "Warsaw"]
[Date "2013.11.15"]
[Round "7"]
[White "Exler, Veronika"]
[Black "Collas, Silvia"]
[Result "1/2-1/2"]
[ECO "A40"]
[WhiteElo "2147"]
[BlackElo "2292"]
[PlyCount "98"]
[EventDate "2013.??.??"]
[EventCountry "POL"]
[WhiteTeam "Austria"]
[BlackTeam "France"]
[WhiteTeamCountry "AUT"]
[BlackTeamCountry "FRA"]
[TimeControl "40/5400+30:1800+30"]

1. d4 {[%emt 0:00:00]} Nf6 {[%emt 0:00:00]} 2. c4 {[%emt 0:00:00]} e6 {[%emt 0:
01:08]} 3. g3 {[%emt 0:00:00]} c5 {[%emt 0:00:37]} 4. Nf3 {[%emt 0:01:47]} cxd4
{[%emt 0:00:22]} 5. Nxd4 {[%emt 0:00:08]} d5 {[%emt 0:00:15]} 6. Bg2 {[%emt 0:
05:17]} e5 {[%emt 0:01:25]} 7. Nf3 {[%emt 0:02:50]} e4 {[%emt 0:01:06]} 8. Nd4
{[%emt 0:01:03]} Nc6 {[%emt 0:00:06]} 9. cxd5 {[%emt 0:13:04]} Qxd5 {[%emt 0:
06:53]} 10. Nxc6 {[%emt 0:06:51]} Qxc6 {[%emt 0:03:53]} 11. O-O {[%emt 0:01:52]
} Bc5 {[%emt 0:02:16]} 12. Nc3 {[%emt 0:03:02]} h6 {[%emt 0:06:52]} 13. Bf4 {
[%emt 0:09:28]} Bf5 {[%emt 0:08:11]} 14. Rc1 {[%emt 0:04:39]} Rd8 {[%emt 0:01:
46]} 15. Qb3 {[%emt 0:01:51]} Qb6 {[%emt 0:15:55]} 16. Qb5+ {[%emt 0:06:26]}
Ke7 {[%emt 0:00:49]} 17. Qxb6 {[%emt 0:18:29]} Bxb6 {[%emt 0:00:22]} 18. Na4 {
[%emt 0:01:12]} g5 {[%emt 0:05:53]} 19. Be5 {[%emt 0:02:54]} Rd5 {[%emt 0:06:
25]} 20. Nxb6 {[%emt 0:09:41]} Rxe5 {[%emt 0:00:29]} 21. Rc7+ {[%emt 0:02:46]}
Ke6 {[%emt 0:04:19]} 22. Nc4 {[%emt 0:00:33]} Rb5 {[%emt 0:00:53]} 23. a4 {
[%emt 0:05:32]} Nd5 {[%emt 0:04:53]} 24. axb5 {[%emt 0:01:07]} Nxc7 {[%emt 0:
00:05]} 25. b6 {[%emt 0:00:10]} axb6 {[%emt 0:00:05]} 26. Nxb6 {[%emt 0:00:11]}
Rd8 {[%emt 0:00:34]} 27. Rc1 {[%emt 0:00:32]} Nb5 {[%emt 0:00:38]} 28. e3 {
[%emt 0:00:47]} Rd6 {[%emt 0:01:47]} 29. Na4 {[%emt 0:00:17]} Rc6 {[%emt 0:01:
35]} 30. Rd1 {[%emt 0:01:04]} Bg4 {[%emt 0:01:10]} 31. Re1 {[%emt 0:00:23]} f5
{[%emt 0:00:32]} 32. Bf1 {[%emt 0:00:35]} Nd6 {[%emt 0:02:02]} 33. h3 {[%emt 0:
00:53]} Bf3 {[%emt 0:00:15]} 34. b4 {[%emt 0:00:51]} Rc2 {[%emt 0:00:59]} 35.
Nc5+ {[%emt 0:00:05]} Kd5 {[%emt 0:00:05]} 36. Rb1 {[%emt 0:00:56]} f4 {[%emt
0:08:25]} 37. gxf4 {[%emt 0:00:32]} gxf4 {[%emt 0:00:02]} 38. exf4 {[%emt 0:00:
31]} Nf5 {[%emt 0:01:10]} 39. Nxb7 {[%emt 0:00:33]} e3 {[%emt 0:04:11]} 40.
fxe3 {[%emt 0:00:00]} Nh4 {[%emt 0:00:00]} 41. Nc5 {[%emt 0:21:49]} Bh5 {[%emt
0:21:11]} 42. Bd3 {[%emt 0:00:26]} Nf3+ {[%emt 0:00:09]} 43. Kf1 {[%emt 0:00:
05]} Nd2+ {[%emt 0:06:35]} 44. Ke1 {[%emt 0:04:24]} Ra2 {[%emt 0:04:10]} 45.
Rc1 {[%emt 0:00:07]} Nf3+ {[%emt 0:00:05]} 46. Kf1 {[%emt 0:00:06]} Nh2+ {
[%emt 0:00:34]} 47. Ke1 {[%emt 0:00:17]} Nf3+ {[%emt 0:00:16]} 48. Kf1 {[%emt
0:00:04]} Nh2+ {[%emt 0:00:14]} 49. Ke1 {[%emt 0:00:05]} Nf3+ {[%emt 0:00:40]}
1/2-1/2

[Event "ETCC Women 2013"]
[Site "Warsaw"]
[Date "2013.11.15"]
[Round "7"]
[White "Foisor, Cristina-Adela"]
[Black "Degrande, Marigje"]
[Result "1-0"]
[ECO "A42"]
[WhiteElo "2347"]
[BlackElo "1867"]
[PlyCount "71"]
[EventDate "2013.??.??"]
[EventCountry "POL"]
[WhiteTeam "Romania"]
[BlackTeam "Belgium"]
[WhiteTeamCountry "ROU"]
[BlackTeamCountry "BEL"]
[TimeControl "40/5400+30:1800+30"]

1. c4 g6 2. d4 d6 3. Nc3 Bg7 4. e4 c6 5. Nf3 Nf6 6. Be2 O-O 7. O-O Qc7 8. Rb1
e5 9. d5 c5 10. a3 Bd7 11. h3 Qd8 12. Be3 Na6 13. b4 b6 14. Qd2 Ne8 15. Ne1 f5
16. exf5 Bxf5 17. Rb3 Nf6 18. Bg5 Bd7 19. Nc2 Qc8 20. Ne3 Nc7 21. Bxf6 Bxf6 22.
Ne4 Ne8 23. Bg4 Bg7 24. bxc5 bxc5 25. Rfb1 Bxg4 26. hxg4 Rf4 27. f3 Qd8 28. g5
Bf8 29. Ng4 Be7 30. Qb2 Rf8 31. Rb8 Rxb8 32. Qxb8 Bxg5 33. Qxa7 Bf4 34. Kf1 Rf7
35. Qb8 Qe7 36. Ngf6+ 1-0